[Event "Titled Tuesday Blitz June 13 Late 2023"]
[White "Fernandez Hernandez, Gerardo"]
[Black "Fajdetic, Hrvoje"]
[WhiteFideId "2207400"]
[BlackFideId "14501945"]
[WhiteElo "2184"]
[BlackElo "2185"]
[Result "0-1"]
[Round "3"]
[TimeControl "180+2"]
[Date "2023.06.13"]
[WhiteClock "0:00:00"]
[BlackClock "0:00:07"]
[Board "184"]

1. e4 {[%clk 0:03:00]}  c5 {[%clk 0:02:57]} 2. d3 {[%clk 0:03:00]}  Nc6 {[%clk 0:02:56]} 3. g3 {[%clk 0:03:00]}  g6 {[%clk 0:02:57]} 4. Bg2 {[%clk 0:03:01]}  Bg7 {[%clk 0:02:58]} 5. f4 {[%clk 0:03:01]}  e6 {[%clk 0:02:55]} 6. Nf3 {[%clk 0:03:02]}  Nge7 {[%clk 0:02:55]} 7. O-O {[%clk 0:03:01]}  d5 {[%clk 0:02:55]} 8. e5 {[%clk 0:02:59]}  h5 {[%clk 0:02:55]} 9. Be3 {[%clk 0:02:42]}  d4 {[%clk 0:02:53]} 10. Bf2 {[%clk 0:02:42]}  O-O {[%clk 0:02:52]} 11. Na3 {[%clk 0:02:37]}  Nf5 {[%clk 0:02:40]} 12. Qe2 {[%clk 0:02:34]}  Nce7 {[%clk 0:02:34]} 13. Nc4 {[%clk 0:02:15]}  b5 {[%clk 0:02:33]} 14. Nd6 {[%clk 0:02:02]}  Nxd6 {[%clk 0:02:28]} 15. exd6 {[%clk 0:02:02]}  Qxd6 {[%clk 0:02:29]} 16. Nxd4 {[%clk 0:01:56]}  Rb8 {[%clk 0:02:24]} 17. Nb3 {[%clk 0:01:49]}  c4 {[%clk 0:02:16]} 18. dxc4 {[%clk 0:01:49]}  bxc4 {[%clk 0:02:14]} 19. Rad1 {[%clk 0:01:35]}  Qa6 {[%clk 0:01:45]} 20. Nc5 {[%clk 0:01:03]}  Qxa2 {[%clk 0:01:43]} 21. Ra1 {[%clk 0:00:56]}  Qxb2 {[%clk 0:01:40]} 22. Rxa7 {[%clk 0:00:50]}  Nf5 {[%clk 0:01:27]} 23. Qxc4 {[%clk 0:00:45]}  Bd4 {[%clk 0:01:17]} 24. Qa2 {[%clk 0:00:31]}  Bxf2+ {[%clk 0:01:12]} 25. Rxf2 {[%clk 0:00:31]}  Qd4 {[%clk 0:01:09]} 26. Nb3 {[%clk 0:00:25]}  Qe3 {[%clk 0:00:44]} 27. Qa1 {[%clk 0:00:24]}  Rd8 {[%clk 0:00:25]} 28. Qe5 {[%clk 0:00:16]}  Rd1+ {[%clk 0:00:22]} 29. Bf1 {[%clk 0:00:16]}  Qxe5 {[%clk 0:00:20]} 30. fxe5 {[%clk 0:00:17]}  Bb7 {[%clk 0:00:13]} 31. Nc5 {[%clk 0:00:14]}  Bd5 {[%clk 0:00:13]} 32. Nd7 {[%clk 0:00:13]}  Rbb1 {[%clk 0:00:12]} 33. Nf6+ {[%clk 0:00:12]}  Kg7 {[%clk 0:00:12]} 34. Rc7 {[%clk 0:00:11]}  Ne3 {[%clk 0:00:09]} 35. h4 {[%clk 0:00:06]}  Rxf1+ {[%clk 0:00:08]} 36. Rxf1 {[%clk 0:00:06]}  Rxf1+ {[%clk 0:00:09]} 37. Kh2 {[%clk 0:00:06]}  Rxf6 {[%clk 0:00:09]} 38. exf6+ {[%clk 0:00:06]}  Kxf6 {[%clk 0:00:10]} 39. Rc3 {[%clk 0:00:04]}  Ng4+ {[%clk 0:00:10]} 40. Kg1 {[%clk 0:00:04]}  e5 {[%clk 0:00:10]} 41. Rc7 {[%clk 0:00:03]}  Be6 {[%clk 0:00:10]} 42. c4 {[%clk 0:00:03]}  Ne3 {[%clk 0:00:08]} 43. c5 {[%clk 0:00:03]}  Nd5 {[%clk 0:00:09]} 44. Ra7 {[%clk 0:00:02]}  e4 {[%clk 0:00:08]} 45. c6 {[%clk 0:00:02]}  Ne7 {[%clk 0:00:08]} 46. c7 {[%clk 0:00:01]}  Nc8 {[%clk 0:00:08]} 47. Ra8 {[%clk 0:00:01]}  Ke5 {[%clk 0:00:08]} 48. Kf2 {[%clk 0:00:01]}  Kd4 {[%clk 0:00:08]} 49. Ra4+ {[%clk 0:00:01]}  Ke5 {[%clk 0:00:08]} 50. Ke3 {[%clk 0:00:01]}  Nd6 {[%clk 0:00:07]} 51. Ra5+ {[%clk 0:00:01]}  Kf6 {[%clk 0:00:07]} 52. Ra6 {[%clk 0:00:01]}  Nc4+ {[%clk 0:00:08]} 53. Kd4 {[%clk 0:00:00]}  Nd2 {[%clk 0:00:07]} 0-1


[Site "https://www.chess.com"]

[Event "Titled Tuesday Blitz June 13 Late 2023"]
[White "sebastianmarinp"]
[Black "Sariego Figueredo, Wilfredo"]
[BlackFideId "3500080"]
[WhiteElo "2384"]
[BlackElo "2309"]
[Result "1-0"]
[Round "3"]
[TimeControl "180+2"]
[Date "2023.06.13"]
[WhiteClock "0:00:04"]
[BlackClock "0:00:00"]
[Board "185"]

1. e4 {[%clk 0:03:00]}  c5 {[%clk 0:02:59]} 2. Nf3 {[%clk 0:02:59]}  a6 {[%clk 0:03:00]} 3. Be2 {[%clk 0:02:49]}  b5 {[%clk 0:02:59]} 4. a4 {[%clk 0:02:47]}  b4 {[%clk 0:02:58]} 5. O-O {[%clk 0:02:41]}  Bb7 {[%clk 0:02:58]} 6. d3 {[%clk 0:02:39]}  g6 {[%clk 0:02:53]} 7. Nbd2 {[%clk 0:02:37]}  Bg7 {[%clk 0:02:53]} 8. Nc4 {[%clk 0:02:36]}  d6 {[%clk 0:02:52]} 9. a5 {[%clk 0:02:33]}  Nd7 {[%clk 0:02:50]} 10. Be3 {[%clk 0:02:13]}  Ngf6 {[%clk 0:02:47]} 11. e5 {[%clk 0:02:09]}  dxe5 {[%clk 0:02:44]} 12. Nfxe5 {[%clk 0:02:09]}  O-O {[%clk 0:02:43]} 13. Bf3 {[%clk 0:02:00]}  Bxf3 {[%clk 0:02:42]} 14. Qxf3 {[%clk 0:02:01]}  Rc8 {[%clk 0:02:39]} 15. Qb7 {[%clk 0:01:38]}  Nxe5 {[%clk 0:02:34]} 16. Nxe5 {[%clk 0:01:39]}  Qd6 {[%clk 0:02:29]} 17. Nc4 {[%clk 0:01:36]}  Qc6 {[%clk 0:02:26]} 18. Qxe7 {[%clk 0:01:31]}  Nd5 {[%clk 0:02:24]} 19. Qd6 {[%clk 0:01:24]}  Nxe3 {[%clk 0:02:21]} 20. Qxc6 {[%clk 0:01:20]}  Rxc6 {[%clk 0:02:20]} 21. fxe3 {[%clk 0:01:21]}  Re8 {[%clk 0:02:17]} 22. Rae1 {[%clk 0:01:16]}  Rce6 {[%clk 0:02:10]} 23. b3 {[%clk 0:01:06]}  f5 {[%clk 0:02:02]} 24. Kf2 {[%clk 0:01:01]}  Bf6 {[%clk 0:02:01]} 25. Kf3 {[%clk 0:00:58]}  Bc3 {[%clk 0:01:59]} 26. Re2 {[%clk 0:00:56]}  Kf7 {[%clk 0:01:54]} 27. g4 {[%clk 0:00:49]}  fxg4+ {[%clk 0:01:49]} 28. Kxg4+ {[%clk 0:00:50]}  Kg7 {[%clk 0:01:47]} 29. e4 {[%clk 0:00:45]}  h5+ {[%clk 0:01:35]} 30. Kg3 {[%clk 0:00:39]}  Bf6 {[%clk 0:01:30]} 31. Ref2 {[%clk 0:00:36]}  R8e7 {[%clk 0:01:13]} 32. Rf3 {[%clk 0:00:34]}  Bd4 {[%clk 0:00:34]} 33. Kg2 {[%clk 0:00:30]}  Be5 {[%clk 0:00:23]} 34. Nb6 {[%clk 0:00:23]}  Bc7 {[%clk 0:00:19]} 35. Nd5 {[%clk 0:00:23]}  Rd7 {[%clk 0:00:19]} 36. Nf6 {[%clk 0:00:18]}  Rde7 {[%clk 0:00:15]} 37. Nd5 {[%clk 0:00:18]}  Rd7 {[%clk 0:00:15]} 38. Rf8 {[%clk 0:00:15]}  Bxa5 {[%clk 0:00:13]} 39. Ra8 {[%clk 0:00:14]}  Bd8 {[%clk 0:00:12]} 40. Nf4 {[%clk 0:00:11]}  Rc6 {[%clk 0:00:11]} 41. Nd5 {[%clk 0:00:07]}  Rcd6 {[%clk 0:00:11]} 42. Ra1 {[%clk 0:00:07]}  a5 {[%clk 0:00:10]} 43. Rf1 {[%clk 0:00:07]}  Re6 {[%clk 0:00:07]} 44. Ne3 {[%clk 0:00:06]}  Bg5 {[%clk 0:00:05]} 45. Nc4 {[%clk 0:00:05]}  Bd8 {[%clk 0:00:05]} 46. Nxa5 {[%clk 0:00:04]}  Bxa5 {[%clk 0:00:04]} 47. Rxa5 {[%clk 0:00:05]}  Re5 {[%clk 0:00:04]} 48. Ra8 {[%clk 0:00:05]}  Rg5+ {[%clk 0:00:00]} 49. Kh3 {[%clk 0:00:04]} 1-0


[Site "https://www.chess.com"]

[Event "Titled Tuesday Blitz June 13 Late 2023"]
[White "el_sporco"]
[Black "Lopez Perdomo, Juan David"]
[BlackFideId "4405137"]
[WhiteElo "2382"]
[BlackElo "1965"]
[Result "0-1"]
[Round "3"]
[TimeControl "180+2"]
[Date "2023.06.13"]
[WhiteClock "0:00:04"]
[BlackClock "0:00:06"]
[Board "186"]

1. e4 {[%clk 0:02:54]}  e6 {[%clk 0:02:59]} 2. d4 {[%clk 0:02:53]}  d5 {[%clk 0:03:00]} 3. Nc3 {[%clk 0:02:54]}  Bb4 {[%clk 0:03:00]} 4. e5 {[%clk 0:02:54]}  c5 {[%clk 0:03:01]} 5. a3 {[%clk 0:02:54]}  Ba5 {[%clk 0:03:01]} 6. b4 {[%clk 0:02:24]}  cxd4 {[%clk 0:03:01]} 7. Nb5 {[%clk 0:02:21]}  Bc7 {[%clk 0:03:01]} 8. f4 {[%clk 0:02:14]}  Nh6 {[%clk 0:03:00]} 9. Nf3 {[%clk 0:02:12]}  O-O {[%clk 0:02:59]} 10. Bd3 {[%clk 0:02:06]}  a6 {[%clk 0:02:58]} 11. Nbxd4 {[%clk 0:02:05]}  Nc6 {[%clk 0:02:58]} 12. O-O {[%clk 0:02:05]}  Nxd4 {[%clk 0:02:57]} 13. Nxd4 {[%clk 0:02:06]}  Bb6 {[%clk 0:02:58]} 14. Be3 {[%clk 0:02:06]}  Nf5 {[%clk 0:02:58]} 15. Nxf5 {[%clk 0:02:06]}  exf5 {[%clk 0:02:58]} 16. Bxb6 {[%clk 0:02:02]}  Qxb6+ {[%clk 0:02:59]} 17. Kh1 {[%clk 0:02:02]}  Be6 {[%clk 0:02:59]} 18. Qd2 {[%clk 0:02:00]}  Rac8 {[%clk 0:02:57]} 19. Qf2 {[%clk 0:01:54]}  Qxf2 {[%clk 0:02:48]} 20. Rxf2 {[%clk 0:01:55]}  Rc3 {[%clk 0:02:47]} 21. Kg1 {[%clk 0:01:53]}  g6 {[%clk 0:02:35]} 22. Kf1 {[%clk 0:01:53]}  Rfc8 {[%clk 0:02:07]} 23. Ke1 {[%clk 0:01:49]}  a5 {[%clk 0:02:06]} 24. Kd2 {[%clk 0:01:39]}  R3c6 {[%clk 0:01:52]} 25. Rff1 {[%clk 0:01:33]}  Ra8 {[%clk 0:01:43]} 26. bxa5 {[%clk 0:01:22]}  Rxa5 {[%clk 0:01:43]} 27. Rfb1 {[%clk 0:01:23]}  Ra4 {[%clk 0:01:18]} 28. g3 {[%clk 0:00:58]}  Rc7 {[%clk 0:00:36]} 29. Rb6 {[%clk 0:00:54]}  Bd7 {[%clk 0:00:30]} 30. Rab1 {[%clk 0:00:45]}  Bc6 {[%clk 0:00:30]} 31. R1b3 {[%clk 0:00:45]}  Kg7 {[%clk 0:00:21]} 32. Kc1 {[%clk 0:00:45]}  f6 {[%clk 0:00:21]} 33. exf6+ {[%clk 0:00:42]}  Kxf6 {[%clk 0:00:22]} 34. Kb2 {[%clk 0:00:43]}  Ke7 {[%clk 0:00:20]} 35. Bb5 {[%clk 0:00:42]}  Rd4 {[%clk 0:00:17]} 36. Bd3 {[%clk 0:00:29]}  Ra4 {[%clk 0:00:14]} 37. R3b4 {[%clk 0:00:28]}  Rxb4+ {[%clk 0:00:14]} 38. axb4 {[%clk 0:00:27]}  Kd6 {[%clk 0:00:15]} 39. Bb5 {[%clk 0:00:14]}  Kd7 {[%clk 0:00:14]} 40. Bxc6+ {[%clk 0:00:13]}  bxc6 {[%clk 0:00:15]} 41. Kc3 {[%clk 0:00:13]}  c5 {[%clk 0:00:13]} 42. bxc5 {[%clk 0:00:12]}  Rxc5+ {[%clk 0:00:14]} 43. Kd3 {[%clk 0:00:12]}  Rc6 {[%clk 0:00:13]} 44. Rb7+ {[%clk 0:00:12]}  Kd6 {[%clk 0:00:12]} 45. Rxh7 {[%clk 0:00:12]}  Ra6 {[%clk 0:00:13]} 46. Rh6 {[%clk 0:00:12]}  Kc5 {[%clk 0:00:14]} 47. h4 {[%clk 0:00:11]}  Ra3+ {[%clk 0:00:14]} 48. c3 {[%clk 0:00:09]}  d4 {[%clk 0:00:10]} 49. Rxg6 {[%clk 0:00:09]}  Rxc3+ {[%clk 0:00:11]} 50. Kd2 {[%clk 0:00:10]}  Ra3 {[%clk 0:00:10]} 51. h5 {[%clk 0:00:10]}  Kc4 {[%clk 0:00:09]} 52. Rc6+ {[%clk 0:00:10]}  Kd5 {[%clk 0:00:09]} 53. Rg6 {[%clk 0:00:08]}  Ke4 {[%clk 0:00:09]} 54. Re6+ {[%clk 0:00:08]}  Kf3 {[%clk 0:00:10]} 55. Rd6 {[%clk 0:00:08]}  Kxg3 {[%clk 0:00:07]} 56. Rxd4 {[%clk 0:00:07]}  Kh4 {[%clk 0:00:08]} 57. h6 {[%clk 0:00:07]}  Ra6 {[%clk 0:00:07]} 58. h7 {[%clk 0:00:08]}  Rh6 {[%clk 0:00:08]} 59. Ke3 {[%clk 0:00:09]}  Kg4 {[%clk 0:00:09]} 60. Rd5 {[%clk 0:00:08]}  Rxh7 {[%clk 0:00:09]} 61. Rd6 {[%clk 0:00:09]}  Rh3+ {[%clk 0:00:09]} 62. Kf2 {[%clk 0:00:09]}  Kxf4 {[%clk 0:00:10]} 63. Rd4+ {[%clk 0:00:09]}  Ke5 {[%clk 0:00:10]} 64. Ra4 {[%clk 0:00:10]}  Rb3 {[%clk 0:00:10]} 65. Ra5+ {[%clk 0:00:10]}  Kf4 {[%clk 0:00:10]} 66. Ra4+ {[%clk 0:00:10]}  Kg5 {[%clk 0:00:10]} 67. Ra8 {[%clk 0:00:11]}  Rb2+ {[%clk 0:00:09]} 68. Kf1 {[%clk 0:00:11]}  Rb6 {[%clk 0:00:07]} 69. Ra3 {[%clk 0:00:11]}  Kg4 {[%clk 0:00:06]} 70. Kf2 {[%clk 0:00:11]}  f4 {[%clk 0:00:06]} 71. Kf1 {[%clk 0:00:11]}  Rb2 {[%clk 0:00:06]} 72. Rc3 {[%clk 0:00:11]}  Rb1+ {[%clk 0:00:03]} 73. Kf2 {[%clk 0:00:11]}  Rb2+ {[%clk 0:00:04]} 74. Kf1 {[%clk 0:00:11]}  Rd2 {[%clk 0:00:04]} 75. Ra3 {[%clk 0:00:11]}  Rd5 {[%clk 0:00:01]} 76. Kf2 {[%clk 0:00:11]}  Rb5 {[%clk 0:00:01]} 77. Kf1 {[%clk 0:00:11]}  f3 {[%clk 0:00:02]} 78. Kf2 {[%clk 0:00:11]}  Rb2+ {[%clk 0:00:02]} 79. Kg1 {[%clk 0:00:07]}  Kg3 {[%clk 0:00:03]} 80. Ra1 {[%clk 0:00:07]}  Rc2 {[%clk 0:00:03]} 81. Kh1 {[%clk 0:00:06]}  Rg2 {[%clk 0:00:04]} 82. Ra8 {[%clk 0:00:04]}  Rh2+ {[%clk 0:00:04]} 83. Kg1 {[%clk 0:00:04]}  f2+ {[%clk 0:00:04]} 84. Kf1 {[%clk 0:00:05]}  Rh1+ {[%clk 0:00:05]} 85. Ke2 {[%clk 0:00:05]}  f1=Q+ {[%clk 0:00:06]} 86. Kd2 {[%clk 0:00:04]}  Qf2+ {[%clk 0:00:06]} 0-1


[Site "https://www.chess.com"]

[Event "Titled Tuesday Blitz June 13 Late 2023"]
[White "Fernandez Siles, Luis"]
[Black "Marin Masis, Jose Esteban"]
[WhiteFideId "2209420"]
[BlackFideId "6508146"]
[WhiteElo "2195"]
[BlackElo "1838"]
[Result "1-0"]
[Round "3"]
[TimeControl "180+2"]
[Date "2023.06.13"]
[WhiteClock "0:01:07"]
[BlackClock "0:00:01"]
[Board "188"]

1. d4 {[%clk 0:03:00]}  Nf6 {[%clk 0:02:59]} 2. c4 {[%clk 0:02:59]}  e6 {[%clk 0:02:56]} 3. Nf3 {[%clk 0:02:59]}  Bb4+ {[%clk 0:02:56]} 4. Bd2 {[%clk 0:02:58]}  Bxd2+ {[%clk 0:02:53]} 5. Qxd2 {[%clk 0:02:57]}  Ne4 {[%clk 0:02:45]} 6. Qc2 {[%clk 0:02:56]}  f5 {[%clk 0:02:44]} 7. Nc3 {[%clk 0:02:52]}  Nxc3 {[%clk 0:02:41]} 8. bxc3 {[%clk 0:02:39]}  d6 {[%clk 0:02:26]} 9. e4 {[%clk 0:02:38]}  O-O {[%clk 0:02:24]} 10. Bd3 {[%clk 0:02:33]}  b6 {[%clk 0:02:15]} 11. exf5 {[%clk 0:02:29]}  exf5 {[%clk 0:02:14]} 12. O-O {[%clk 0:02:28]}  Bb7 {[%clk 0:01:53]} 13. d5 {[%clk 0:02:27]}  Qf6 {[%clk 0:01:46]} 14. Nd4 {[%clk 0:02:22]}  Bc8 {[%clk 0:01:21]} 15. Rae1 {[%clk 0:02:17]}  c6 {[%clk 0:01:19]} 16. Ne6 {[%clk 0:02:13]}  g6 {[%clk 0:01:04]} 17. Nxf8 {[%clk 0:01:56]}  Kxf8 {[%clk 0:00:55]} 18. f4 {[%clk 0:01:53]}  Na6 {[%clk 0:00:52]} 19. dxc6 {[%clk 0:01:34]}  Nc5 {[%clk 0:00:47]} 20. Qe2 {[%clk 0:01:32]}  Be6 {[%clk 0:00:25]} 21. Rf3 {[%clk 0:01:23]}  Qxc3 {[%clk 0:00:12]} 22. Kh1 {[%clk 0:01:17]}  Re8 {[%clk 0:00:05]} 23. Bxf5 {[%clk 0:01:07]}  Qf6 {[%clk 0:00:01]} 1-0


[Site "https://www.chess.com"]

[Event "Titled Tuesday Blitz June 13 Late 2023"]
[White "dorpato"]
[Black "Zherebtsova, Alexandra"]
[BlackFideId "24129518"]
[WhiteElo "2065"]
[BlackElo "2055"]
[Result "0-1"]
[Round "3"]
[TimeControl "180+2"]
[Date "2023.06.13"]
[WhiteClock "0:00:00"]
[BlackClock "0:00:15"]
[Board "194"]

1. e4 {[%clk 0:03:00]}  e5 {[%clk 0:02:59]} 2. d4 {[%clk 0:02:56]}  exd4 {[%clk 0:02:59]} 3. Nf3 {[%clk 0:02:57]}  Nc6 {[%clk 0:02:59]} 4. c3 {[%clk 0:02:57]}  d5 {[%clk 0:02:58]} 5. exd5 {[%clk 0:02:57]}  Qxd5 {[%clk 0:02:58]} 6. cxd4 {[%clk 0:02:58]}  Bg4 {[%clk 0:02:56]} 7. Be2 {[%clk 0:02:58]}  Nf6 {[%clk 0:02:56]} 8. Nc3 {[%clk 0:02:57]}  Qd7 {[%clk 0:02:55]} 9. d5 {[%clk 0:02:45]}  Nb4 {[%clk 0:02:46]} 10. Ne5 {[%clk 0:02:27]}  Bxe2 {[%clk 0:02:20]} 11. Qxe2 {[%clk 0:02:11]}  Qe7 {[%clk 0:02:14]} 12. Bg5 {[%clk 0:02:02]}  O-O-O {[%clk 0:02:07]} 13. O-O-O {[%clk 0:01:41]}  h6 {[%clk 0:01:55]} 14. Bxf6 {[%clk 0:01:36]}  gxf6 {[%clk 0:01:54]} 15. Qg4+ {[%clk 0:01:20]}  Kb8 {[%clk 0:01:45]} 16. Nf3 {[%clk 0:01:02]}  Qc5 {[%clk 0:01:42]} 17. Qe4 {[%clk 0:00:49]}  Nxa2+ {[%clk 0:01:41]} 18. Kc2 {[%clk 0:00:45]}  Nxc3 {[%clk 0:01:38]} 19. bxc3 {[%clk 0:00:46]}  Bd6 {[%clk 0:01:38]} 20. Rd2 {[%clk 0:00:33]}  Rhe8 {[%clk 0:00:57]} 21. Qa4 {[%clk 0:00:23]}  Be5 {[%clk 0:00:51]} 22. c4 {[%clk 0:00:18]}  Bf4 {[%clk 0:00:45]} 23. Rd3 {[%clk 0:00:15]}  Re2+ {[%clk 0:00:41]} 24. Kc3 {[%clk 0:00:14]}  Qxf2 {[%clk 0:00:34]} 25. Rb1 {[%clk 0:00:12]}  Be5+ {[%clk 0:00:22]} 26. Nxe5 {[%clk 0:00:11]}  fxe5 {[%clk 0:00:23]} 27. Qb3 {[%clk 0:00:10]}  b6 {[%clk 0:00:21]} 28. Ra1 {[%clk 0:00:06]}  Re3 {[%clk 0:00:20]} 29. Qa4 {[%clk 0:00:04]}  Rxd3+ {[%clk 0:00:18]} 30. Kxd3 {[%clk 0:00:05]}  Qd4+ {[%clk 0:00:18]} 31. Kc2 {[%clk 0:00:04]}  a5 {[%clk 0:00:18]} 32. Ra3 {[%clk 0:00:00]}  e4 {[%clk 0:00:15]} 0-1


[Site "https://www.chess.com"]

[Event "Titled Tuesday Blitz June 13 Late 2023"]
[White "Chess_maylovsky"]
[Black "Garrido, Denis"]
[BlackFideId "601217"]
[WhiteElo "2036"]
[BlackElo "2353"]
[Result "0-1"]
[Round "3"]
[TimeControl "180+2"]
[Date "2023.06.13"]
[WhiteClock "0:00:22"]
[BlackClock "0:00:31"]
[Board "195"]

1. c4 {[%clk 0:03:00]}  Nf6 {[%clk 0:02:59]} 2. Nc3 {[%clk 0:03:00]}  g6 {[%clk 0:02:59]} 3. d4 {[%clk 0:03:00]}  Bg7 {[%clk 0:02:59]} 4. e4 {[%clk 0:03:00]}  d6 {[%clk 0:02:59]} 5. h3 {[%clk 0:03:01]}  O-O {[%clk 0:02:59]} 6. Be3 {[%clk 0:03:02]}  c5 {[%clk 0:02:57]} 7. d5 {[%clk 0:02:56]}  e6 {[%clk 0:02:57]} 8. Nf3 {[%clk 0:02:51]}  exd5 {[%clk 0:02:57]} 9. exd5 {[%clk 0:02:50]}  Re8 {[%clk 0:02:47]} 10. Be2 {[%clk 0:02:49]}  Ne4 {[%clk 0:02:46]} 11. Nxe4 {[%clk 0:02:47]}  Rxe4 {[%clk 0:02:47]} 12. Qc2 {[%clk 0:02:44]}  Re8 {[%clk 0:02:31]} 13. O-O {[%clk 0:02:44]}  Bf5 {[%clk 0:02:31]} 14. Bd3 {[%clk 0:02:43]}  Bxd3 {[%clk 0:02:31]} 15. Qxd3 {[%clk 0:02:43]}  Nd7 {[%clk 0:02:28]} 16. Rab1 {[%clk 0:02:41]}  Rb8 {[%clk 0:02:21]} 17. b4 {[%clk 0:02:40]}  cxb4 {[%clk 0:02:20]} 18. Rxb4 {[%clk 0:02:39]}  b6 {[%clk 0:02:20]} 19. Bd4 {[%clk 0:02:34]}  Nc5 {[%clk 0:02:16]} 20. Qd1 {[%clk 0:02:14]}  Qc8 {[%clk 0:02:11]} 21. Bxg7 {[%clk 0:02:12]}  Kxg7 {[%clk 0:02:12]} 22. Qc1 {[%clk 0:02:02]}  Qa6 {[%clk 0:02:09]} 23. Qb2+ {[%clk 0:02:01]}  Kg8 {[%clk 0:02:08]} 24. Rd1 {[%clk 0:01:44]}  Re4 {[%clk 0:02:06]} 25. Nd4 {[%clk 0:01:41]}  Rbe8 {[%clk 0:02:04]} 26. Nc6 {[%clk 0:01:40]}  Rxc4 {[%clk 0:01:52]} 27. Rxc4 {[%clk 0:01:24]}  Qxc4 {[%clk 0:01:53]} 28. Qf6 {[%clk 0:01:24]}  Qe2 {[%clk 0:01:37]} 29. Rf1 {[%clk 0:01:19]}  Ne4 {[%clk 0:01:35]} 30. Qf4 {[%clk 0:01:11]}  Qxa2 {[%clk 0:01:07]} 31. Re1 {[%clk 0:01:00]}  Qxd5 {[%clk 0:01:05]} 32. Nb4 {[%clk 0:00:53]}  Qe5 {[%clk 0:01:03]} 33. Nd3 {[%clk 0:00:48]}  Qxf4 {[%clk 0:01:03]} 34. Nxf4 {[%clk 0:00:48]}  Nf6 {[%clk 0:01:03]} 35. Rd1 {[%clk 0:00:47]}  Rd8 {[%clk 0:01:00]} 36. g4 {[%clk 0:00:47]}  a5 {[%clk 0:00:58]} 37. g5 {[%clk 0:00:47]}  Ne4 {[%clk 0:00:58]} 38. Nd5 {[%clk 0:00:46]}  Nxg5 {[%clk 0:00:55]} 39. Kg2 {[%clk 0:00:45]}  b5 {[%clk 0:00:54]} 40. Nf6+ {[%clk 0:00:42]}  Kg7 {[%clk 0:00:53]} 41. h4 {[%clk 0:00:43]}  Kxf6 {[%clk 0:00:53]} 42. hxg5+ {[%clk 0:00:42]}  Kxg5 {[%clk 0:00:54]} 43. Rd5+ {[%clk 0:00:42]}  Kf6 {[%clk 0:00:34]} 44. Rxb5 {[%clk 0:00:42]}  Ra8 {[%clk 0:00:34]} 45. Rb3 {[%clk 0:00:41]}  a4 {[%clk 0:00:34]} 46. Ra3 {[%clk 0:00:42]}  h5 {[%clk 0:00:33]} 47. Kf3 {[%clk 0:00:42]}  Ke5 {[%clk 0:00:34]} 48. Ke3 {[%clk 0:00:42]}  h4 {[%clk 0:00:34]} 49. f4+ {[%clk 0:00:43]}  Kd5 {[%clk 0:00:34]} 50. Kf3 {[%clk 0:00:42]}  Kc4 {[%clk 0:00:33]} 51. Ra1 {[%clk 0:00:40]}  a3 {[%clk 0:00:33]} 52. Rc1+ {[%clk 0:00:40]}  Kb3 {[%clk 0:00:33]} 53. Rc6 {[%clk 0:00:40]}  a2 {[%clk 0:00:33]} 54. Rb6+ {[%clk 0:00:40]}  Kc2 {[%clk 0:00:34]} 55. Rc6+ {[%clk 0:00:40]}  Kd1 {[%clk 0:00:33]} 56. Rxd6+ {[%clk 0:00:41]}  Ke1 {[%clk 0:00:34]} 57. Rd8 {[%clk 0:00:22]}  Rxd8 {[%clk 0:00:31]} 0-1


[Site "https://www.chess.com"]

[Event "Titled Tuesday Blitz June 13 Late 2023"]
[White "Francisco_Ferrari"]
[Black "Vargas, Mauricio"]
[BlackFideId "4404572"]
[WhiteElo "2345"]
[BlackElo "1986"]
[Result "1-0"]
[Round "3"]
[TimeControl "180+2"]
[Date "2023.06.13"]
[WhiteClock "0:00:08"]
[BlackClock "0:00:00"]
[Board "198"]

1. d4 {[%clk 0:03:00]}  d5 {[%clk 0:02:58]} 2. Nf3 {[%clk 0:02:59]}  Nf6 {[%clk 0:02:39]} 3. e3 {[%clk 0:02:58]}  c6 {[%clk 0:02:39]} 4. Bd3 {[%clk 0:02:55]}  Bg4 {[%clk 0:02:39]} 5. O-O {[%clk 0:02:51]}  e6 {[%clk 0:02:39]} 6. Nbd2 {[%clk 0:02:50]}  Bd6 {[%clk 0:02:39]} 7. b3 {[%clk 0:02:44]}  Nbd7 {[%clk 0:02:36]} 8. Bb2 {[%clk 0:02:43]}  Rc8 {[%clk 0:02:35]} 9. c4 {[%clk 0:02:36]}  Bb8 {[%clk 0:02:33]} 10. Qc2 {[%clk 0:02:24]}  Qc7 {[%clk 0:02:32]} 11. h3 {[%clk 0:02:08]}  h5 {[%clk 0:02:31]} 12. Ne5 {[%clk 0:02:02]}  Bf5 {[%clk 0:01:49]} 13. Bxf5 {[%clk 0:01:58]}  exf5 {[%clk 0:01:49]} 14. Qxf5 {[%clk 0:01:58]}  g6 {[%clk 0:01:47]} 15. Qf3 {[%clk 0:01:50]}  O-O {[%clk 0:01:46]} 16. cxd5 {[%clk 0:01:37]}  cxd5 {[%clk 0:01:40]} 17. Rac1 {[%clk 0:01:33]}  Qa5 {[%clk 0:01:36]} 18. Nxd7 {[%clk 0:01:19]}  Nxd7 {[%clk 0:01:28]} 19. Rfd1 {[%clk 0:00:57]}  Rxc1 {[%clk 0:01:24]} 20. Bxc1 {[%clk 0:00:58]}  Qxa2 {[%clk 0:01:22]} 21. e4 {[%clk 0:00:56]}  dxe4 {[%clk 0:01:17]} 22. Nxe4 {[%clk 0:00:57]}  Qc2 {[%clk 0:01:14]} 23. Bh6 {[%clk 0:00:51]}  Re8 {[%clk 0:01:07]} 24. Ng5 {[%clk 0:00:46]}  Qf5 {[%clk 0:00:45]} 25. Qxf5 {[%clk 0:00:36]}  gxf5 {[%clk 0:00:45]} 26. Nf3 {[%clk 0:00:27]}  f4 {[%clk 0:00:36]} 27. d5 {[%clk 0:00:24]}  f6 {[%clk 0:00:35]} 28. d6 {[%clk 0:00:23]}  Re4 {[%clk 0:00:26]} 29. g3 {[%clk 0:00:14]}  fxg3 {[%clk 0:00:18]} 30. fxg3 {[%clk 0:00:15]}  a6 {[%clk 0:00:13]} 31. Bf4 {[%clk 0:00:15]}  Ba7+ {[%clk 0:00:12]} 32. Kf1 {[%clk 0:00:13]}  Ne5 {[%clk 0:00:12]} 33. Bxe5 {[%clk 0:00:12]}  fxe5 {[%clk 0:00:12]} 34. d7 {[%clk 0:00:13]}  Bb6 {[%clk 0:00:08]} 35. d8=Q+ {[%clk 0:00:12]}  Bxd8 {[%clk 0:00:09]} 36. Rxd8+ {[%clk 0:00:12]}  Kf7 {[%clk 0:00:07]} 37. Rd7+ {[%clk 0:00:13]}  Ke6 {[%clk 0:00:07]} 38. Rxb7 {[%clk 0:00:08]}  Re3 {[%clk 0:00:05]} 39. Kf2 {[%clk 0:00:07]}  Rc3 {[%clk 0:00:03]} 40. Rb6+ {[%clk 0:00:08]}  Kd5 {[%clk 0:00:03]} 41. Rxa6 {[%clk 0:00:08]}  Rxb3 {[%clk 0:00:02]} 42. Ra5+ {[%clk 0:00:08]}  Ke4 {[%clk 0:00:00]} 43. Rxe5+ {[%clk 0:00:08]} 1-0


[Site "https://www.chess.com"]